Cogmind - Beta 13 @@@ ROGUE MODE // 2024.04.14 @ 14:20:29 Player: Exceptionally Mediocre Result: Destroyed by XH-5KD(R) with Subdweller Laser Performance ------------- Evolutions (0) 0 Regions Visited (3) 600 Robots Destroyed (30) 150 Value Destroyed (731) 731 Prototype IDs (0) 0 Alien Tech Used (0) 0 Bonus (0) 0 TOTAL SCORE: 1481 Bonus ------- None Cogmind --------- Core Integrity 0/250 Matter 115/300 Energy 125/125 System Corruption 0% Temperature Cool (79) Movement Rolling (95) Location -10/Subcaves Parts ------- > --- POWER (1) -------- Light Ion Engine > --- PROPULSION (2) --- Wheel Subdweller Monowheel > --- UTILITY (2) ------ Large Storage Unit Core Shielding > --- WEAPON (2) ------- Improved Light Cannon > --- INVENTORY (15) --- Ion Engine Improved Ion Engine Subdweller Power Source Wheel Wheel Improved Heat Sink High-capacity Matter Pod (200) Light Armor Plating Subdweller Laser Improved Light Cannon Grenade Launcher Grenade Launcher Mining Claw Peak State ------------ > --- POWER ------------ Light Ion Engine > --- PROPULSION ------- Wheel Subdweller Monowheel > --- UTILITY ---------- Large Storage Unit Light Armor Plating > --- WEAPON ----------- Improved Light Cannon Improved Light Cannon > --- INVENTORY -------- Ion Engine Improved Ion Engine Subdweller Power Source Wheel Wheel Improved Heat Sink High-capacity Matter Pod Core Shielding Light Armor Plating Subdweller Laser Improved Light Cannon Improved Light Cannon Grenade Launcher Grenade Launcher Mining Claw [Rating: 12] Favorites ----------- Power Ion Engine Engine Ion Engine Propulsion Wheel Wheel Wheel Utility Large Storage Unit Device Sensor Array Storage Large Storage Unit Protection Light Armor Plating Weapon Beam Cannon Energy Gun Small Laser Energy Cannon Beam Cannon Ballistic Gun Light Assault Rifle Ballistic Cannon Improved Light Cannon Slashing Weapon Mining Claw Build | -11 -10 -10 -10 ------- Run | Yrd Mat Min Sub Slots Evolved . | . . . . Power . | . . . . Propulsion . | . . . . Utility . | . . . . Weapon . | . . . . Parts Attached 27 | 6 11 4 6 Power 4 | 1 2 1 . Engine 4 | 1 2 1 . Core . | . . . . Reactor . | . . . . Propulsion 7 | 2 2 . 3 Treads . | . . . . Leg . | . . . . Wheel 7 | 2 2 . 3 Hover . | . . . . Flight . | . . . . Utility 6 | 1 3 1 1 Device 2 | . 2 . . Storage 2 | 1 1 . . Processor . | . . . . Hackware . | . . . . Protection 2 | . . 1 1 Artifact . | . . . . Weapon 10 | 2 4 2 2 Energy Gun 1 | . 1 . . Energy Cannon 1 | . 1 . . Ballistic Gun 2 | 2 . . . Ballistic Cannon 4 | . 1 1 2 Launcher . | . . . . Special Weapon . | . . . . Impact Weapon . | . . . . Slashing Weapon 2 | . 1 1 . Piercing Weapon . | . . . . Special Melee Weapon . | . . . . Unidentified Prototypes . | . . . . Parts Lost 8 | . 2 . 6 Power 1 | . 1 . . Propulsion 2 | . . . 2 Utility 1 | . . . 1 Weapon 4 | . 1 . 3 Highest Loss Streak 3 | . 2 . 3 To Critical Strikes . | . . . . Average Slot Usage (%) 96 | . 92 100 100 Engine 14 | . 14 14 14 Wheel 28 | . 28 28 28 Device 4 | . 7 2 . Storage 14 | . 14 14 14 Protection 6 | . . 11 14 Energy Cannon 10 | . 10 14 1 Ballistic Gun 5 | . 11 . . Ballistic Cannon 9 | . 1 12 26 Slashing Weapon 1 | . 2 1 . Naked Turns . | . . . . Heaviest Build 34 | 12 33 33 34 Greatest Support 30 | 26 26 26 30 Greatest Overweight (x) 3 | 3 1 1 1 Average Overweight (x) . | . . 1 1 Largest Inventory Capacity 15 | 8 15 15 15 Average Capacity 13 | 7 13 15 15 Most Carried 15 | 8 15 15 15 Average Carried 13 | 4 12 14 14 Final Capacity 15 | 8 15 15 15 Final Carried 15 | 8 15 15 13 Class Distribution -------------------- 100% | Mutant Dominant Class ---------------- Mutant | -10/Materials Mutant | -10/Mines Mutant | -10/Subcaves Resources | -11 -10 -10 -10 ----------- Run | Yrd Mat Min Sub Matter Collected 864 | 292 275 230 67 Remotely . | . . . . Salvage Created 944 | 161 388 324 71 Parts 66 | 12 26 22 6 Haulers Intercepted 2 | . 2 . . Recyclers Shooed . | . . . . Parts Field Recycled . | . . . . Retrieved Matter . | . . . . Parts Self-Destructed 5 | . . . 5 Prevented . | . . . . Kills | -11 -10 -10 -10 ------- Run | Yrd Mat Min Sub Combat Hostiles Destroyed 19 | . 8 6 5 Guns 6 | . 6 . . Cannons 13 | . 2 6 5 Classes Destroyed 10 | 3 5 1 1 Worker 3 | 1 . 2 . Tunneler 3 | 2 . 1 . Hauler 2 | . 2 . . Recycler 1 | 1 . . . Operator 1 | . 1 . . Watcher 1 | . 1 . . Swarmer 3 | . 3 . . Grunt 9 | . 5 4 . Sentry 2 | . . 2 . Subdweller 5 | . . . 5 Best Kill Streak 3 | 2 3 2 2 Combat Bots Only 3 | . 3 2 2 Max Kills in Single Turn 1 | 1 1 1 1 Gunslinging . | . . . . Exploded . | . . . . Melee . | . . . . Uniques/NPCs Destroyed . | . . . . Combat | -11 -10 -10 -10 -------- Run | Yrd Mat Min Sub Hostile Shots Fired 102 | . 38 17 47 Missed 17 | . 5 1 11 Damage Taken 1362 | . 398 227 737 Core 255 | . 55 78 122 Absorbed by Shields . | . . . . Redirected to Shielding 11 | . . . 11 Core Remaining (%) 100 | 100 . . . Volleys Fired 109 | 16 47 17 29 Largest 2 | 2 2 2 2 Hottest 99 | 40 80 99 99 Shots Fired 209 | 32 85 34 58 Gun 93 | 32 61 . . Cannon 116 | . 24 34 58 Launcher . | . . . . Special . | . . . . Kinetic 160 | 32 58 17 53 Thermal 49 | . 27 17 5 Explosive . | . . . . Electromagnetic . | . . . . Robot Hit Streak 17 | 8 14 17 10 Robot Miss Streak 2 | 2 2 2 2 Penetration Max . | . . . . Secondary Targets . | . . . . Shots Hit Robots 144 | 22 54 27 41 Core Hits 50 | 8 19 12 11 Critical Kills . | . . . . Critical Parts Destroyed . | . . . . Critical Strikes 3 | . . 1 2 Blast 3 | . . 1 2 Melee Attacks 12 | . 2 10 . Impact . | . . . . Slashing 12 | . 2 10 . Piercing . | . . . . Sneak Attacks . | . . . . Combat Hostiles . | . . . . Follow-up Attacks . | . . . . Damage Inflicted 2103 | 176 576 506 845 Guns 504 | 176 328 . . Cannons 1599 | . 248 506 845 Explosions . | . . . . Melee . | . . . . Ramming . | . . . . Kinetic 1551 | 176 307 259 809 Thermal 552 | . 269 247 36 Explosive . | . . . . Electromagnetic . | . . . . Impact . | . . . . Slashing . | . . . . Piercing . | . . . . Highest Corruption . | . . . . Average Corruption . | . . . . Corruption Purged . | . . . . Corruption Blocked . | . . . . Overload Shots . | . . . . Overflow Damage . | . . . . Projectiles . | . . . . Explosions . | . . . . Melee . | . . . . Knockbacks 8 | . . 2 6 Impact . | . . . . Kinetic 7 | . . 1 6 Secondary 1 | . . 1 . Self-Inflicted Damage . | . . . . Shots . | . . . . Rammed . | . . . . Targets Rammed . | . . . . Kicked . | . . . . Crushed . | . . . . Highest Temperature 291 | . 120 259 291 Average Temperature 65 | . 32 91 139 Received Heat Transfer 824 | . 222 111 491 Siege Activations . | . . . . Robots Corrupted . | . . . . Combat Hostiles . | . . . . Parts Fried . | . . . . Impact Corruptions . | . . . . Robots Melted . | . . . . Combat Hostiles . | . . . . Parts Melted . | . . . . Heat Transferred 1160 | . 568 518 74 Parts Sabotaged . | . . . . Parts Stolen . | . . . . Parts Stripped . | . . . . Power Chain Reactions . | . . . . Alert | -11 -10 -10 -10 ------- Run | Yrd Mat Min Sub Peak Influence 202 | 20 202 120 . Initial 13 | . 13 . . Average 68 | 8 66 84 . Maximum Alert Level 1 | . 1 . . Low Security (%) 96 | 100 93 100 . Level 1 3 | . 6 . . Level 2 . | . . . . Level 3 . | . . . . Level 4 . | . . . . Level 5 . | . . . . High Security . | . . . . Max Security . | . . . . Squads Dispatched 2 | . 2 . . Investigation 1 | . 1 . . Extermination . | . . . . Reinforcement 1 | . 1 . . Assault . | . . . . Garrison . | . . . . Intercept . | . . . . Searches Triggered . | . . . . Construction Impeded . | . . . . Haulers Reinforced . | . . . . Active Scanning Responses . | . . . . Cargo Convoy Interrupts . | . . . . Stealth | -11 -10 -10 -10 --------- Run | Yrd Mat Min Sub Distress Signals 1 | . 1 . . Communications Jammed . | . . . . Distress Signals . | . . . . Times Spotted 26 | . 13 6 7 Peak Tracking Total 3 | . 3 2 3 Tactical Retreats 1 | . 1 . . Traps | -11 -10 -10 -10 ------- Run | Yrd Mat Min Sub Traps Triggered 3 | . 3 . . Indirectly . | . . . . Trap Hack Attempts . | . . . . Triggered . | . . . . Disarmed . | . . . . Reprogrammed . | . . . . Reused . | . . . . Traps Extracted . | . . . . Installed . | . . . . Triggered . | . . . . Machines | -11 -10 -10 -10 ---------- Run | Yrd Mat Min Sub Machines Disabled . | . . . . Max in Single Turn . | . . . . Machines Repaired . | . . . . Machines Dismantled . | . . . . Machines Sabotaged . | . . . . Overloaded Fab Kills . | . . . . Hacking | -11 -10 -10 -10 --------- Run | Yrd Mat Min Sub Machines Accessed 1 | . 1 . . Terminals 1 | . 1 . . Fabricators . | . . . . Repair Stations . | . . . . Recycling Units . | . . . . Scanalyzers . | . . . . Garrison Access . | . . . . Total Hacks 2 | . 2 . . Successful 1 | . 1 . . Failed 1 | . 1 . . Catastrophic . | . . . . Database Lockouts . | . . . . Manual 2 | . 2 . . Terminals 2 | . 2 . . Fabricators . | . . . . Repair Stations . | . . . . Recycling Units . | . . . . Scanalyzers . | . . . . Garrison Access . | . . . . Terminal Hacks . | . . . . Fabricator Hacks . | . . . . Repair Station Hacks . | . . . . Recycling Unit Hacks . | . . . . Scanalyzer . | . . . . Garrison Access Hacks . | . . . . Unauthorized Hacks 1 | . 1 . . Terminals 1 | . 1 . . Botnet 1 | . 1 . . Fabricators . | . . . . Repair Stations . | . . . . Recycling Units . | . . . . Scanalyzers . | . . . . Garrison Access . | . . . . Data Cores Recovered . | . . . . Used . | . . . . Hacking Detections 1 | . 1 . . Full Trace Events . | . . . . Feedback Events . | . . . . Feedback Blocked . | . . . . Robot Schematics Acquired . | . . . . Robots Built . | . . . . Authchips . | . . . . Time . | . . . . Total Robot Build Rating . | . . . . Part Schematics Acquired . | . . . . Parts Built . | . . . . Authchips . | . . . . Time . | . . . . Total Part Build Rating . | . . . . Parts Repaired . | . . . . Time . | . . . . Parts Recycled . | . . . . Recycled Matter . | . . . . Retrieved Matter . | . . . . Retrieved Components . | . . . . Parts Scanalyzed . | . . . . Part Schematics Acquired . | . . . . Parts Damaged . | . . . . Bothacking | -11 -10 -10 -10 ------------ Run | Yrd Mat Min Sub Used RIF Installer . | . . . . Robots Hacked . | . . . . Non-combat . | . . . . Combat . | . . . . Robot Hacks Applied . | . . . . Relay Couplers Released . | . . . . Fabnet Peak Effective % . | . . . . Robots Rewired . | . . . . Allies Hacked . | . . . . Hacks Repelled . | . . . . Allies | -11 -10 -10 -10 -------- Run | Yrd Mat Min Sub Total Allies . | . . . . Largest Group . | . . . . Highest-Rated Group . | . . . . Highest-Rated Ally . | . . . . Total Orders . | . . . . Ally Attacks . | . . . . Total Damage . | . . . . Kills . | . . . . Allies Corrupted . | . . . . Allies Melted . | . . . . Intel | -11 -10 -10 -10 ------- Run | Yrd Mat Min Sub Robot Analysis Total . | . . . . Derelict Logs Recovered 3 | . . 2 1 Drone Launches . | . . . . Drone Recoveries . | . . . . Exploration | -11 -10 -10 -10 ------------- Run | Yrd Mat Min Sub Turns Passed 1878 | 132 800 677 269 Spaces Moved 1272 | 73 498 535 166 Core 9 | 9 . . . Treads . | . . . . Legs . | . . . . Wheels 1263 | 64 498 535 166 Hover . | . . . . Flight . | . . . . Fastest Speed 50 | 50 90 105 95 Average Speed 103 | 100 102 105 104 Slowest Speed 200 | 200 105 105 107 Overloaded Moves . | . . . . Propulsion Burnouts . | . . . . Robots Hopped . | . . . . Cave-ins Triggered . | . . . . Exploration Rate (%) 49 | 5 85 95 13 Regions Visited 3 Branch Regions 2 Pre-discovered Areas 2 | . . 2 . Known Exits Taken . | . . . . Unknown Exits Taken 3 | 1 1 1 . Scrap Searched 1 | . . 1 . Spaces Dug 3 | . 2 1 . Terrain Destroyed 3 | . 2 1 . Melee 3 | . 2 1 . Projectile . | . . . . AOE . | . . . . Terrain Rammed . | . . . . Walls Destroyed . | . . . . Machines Disabled . | . . . . Actions | -11 -10 -10 -10 --------- Run | Yrd Mat Min Sub Total 1622 | 105 717 597 203 Wait 136 | . 115 21 . Move 1269 | 72 497 534 166 Hop . | . . . . Pick Up 42 | 10 26 4 2 Fast Attach 10 | 5 4 1 . Attach 8 | 1 2 . 5 Detach 1 | . 1 . . Swap 9 | . 5 3 1 Drop 24 | 1 18 5 . Fire 109 | 16 47 17 29 Melee 12 | . 2 10 . Ram . | . . . . Kick . | . . . . Crush . | . . . . Escape Stasis . | . . . . Rewire 2 | . . 2 . Trap . | . . . . Miscellaneous . | . . . . Route ------- -11/Scrapyard -10/Materials (discovered 3 exits: [*Mat x2] / [*Min]) -10/Mines (discovered 3 exits: [*Mat x2] / [*Sub]) -10/Subcaves History --------- Turn | Location | Event 2 | -11/Scrapyard | Met Revision 17 24 | -11/Scrapyard | Discovered new exit (range 16) 133 | -11/Scrapyard | Entered Materials 283 | -10/Materials | Discovered new exit (range 16) 317 | -10/Materials | Build established: Mutant 526 | -10/Materials | Discovered new exit (range 16) 844 | -10/Materials | Discovered new exit (range 5) 933 | -10/Materials | Entered Mines 1091 | -10/Mines | Discovered new exit (range 5) 1132 | -10/Mines | Learned location of Zion (-7) 1253 | -10/Mines | Learned location of Storage (-7) 1343 | -10/Mines | Core integrity fell below 50% 1426 | -10/Mines | Found a hidden stash of uninstalled traps 1595 | -10/Mines | Discovered new exit (range 7) 1597 | -10/Mines | Discovered new exit (range 13) 1610 | -10/Mines | Entered Subcaves 1680 | -10/Subcaves | Learned location of 2 exits from Materials 1833 | -10/Subcaves | Ambushed by Subdwellers from Twisted Machinery 1862 | -10/Subcaves | Core integrity fell below 20% 1879 | -10/Subcaves | Destroyed by XH-5KD(R) with Subdweller Laser Last Messages --------------- 01812_ 7G-9F3(R) knocked back. 01815_ 7G-9F3(R) destroyed. 01831_ Acquired 1 matter. 01833_ XD-5JK(R) emerges from the Twisted Machinery. 01837_ XD-5JK(R) knocked back. 01852_ Acquired 2 matter. 01853_ XH-5KD(R) knocked back. EG-F27(R) emerges from concealment. 01859_ Destroyed Scrap Shield. 01861_ Lgt. Armor Plating destroyed. 01861_ Critical hit (Meltdown: +290). 01863_ XD-5JK(R) suffers critical hit (Blast). 01863_ XD-5JK(R) destroyed. 01866_ EG-F27(R) knocked back. 01870_ Imp. Light Cannon destroyed. 01872_ EG-F27(R) affixes Scrap Shield Fragment to Scrap Shield. 01876_ EG-F27(R) knocked back. 01877_ Imp. Light Cannon destroyed. Map ----- +----------------------------------------------------+ | ?????????????????????????????????????????????????? | | ?????????????????????????????????????????????????? | | ?????????????????????????????????????????????????? | | ?????????????????????????????????????????????????? | | ?????????????????????????????????????????????????? | | ?????????????????????????????????????????????????? | | ?????????????????????????????????????????????????? | | ?????????????????????????????????????????????????? | | ?????????????????????????????????????????????????? | | ?????????????????????????????????????????????????? | | ??????????????????????? ?????????????????????????? | | ?????????????????????? ?????????????????????????? | | ?????????????????????## ?????????????????????????? | | ?????????????????????# ????????????????????????? | | ?????????????????????# ????????????????????????? | | ????????????????????## ????????????????????????? | | ????????????????????# ????????????????????????? | | ????????????????????? ????????????????????????? | | ?????????????????#???? ????????????????????????? | | ?????????????????# ??## ##?##?????######????????? | | ?????????????????## ?# ## #?#### #????????? | | ?????????????????"" ## ### #?????????? | | ????????????????""""" ## #??????????? | | ????????????? " "" "R% ## #??????????? | | ?????????????????# %%& % ### #???????????? | | ?????????????????????#;R @ ;# #????????????? | | ?????????????????????### !& #?????????????? | | ???????????????????????## #?######??????? | | ???????????????????????## ### #??????? | | ???????????????????????# ## #??????? | | ??????????????????????# #??????# | | ??????????????????????# ## ### ##???? # | | ??????????????????????## ### ### #### # | | ???????????????????????##### ""# | | ?????????????????????????# "" | | ??????????????????????? | | ??????????????????????? ### ## ## " | | ??????????????????????? #??# ## % ##? "" | | ??????????????????????## #???# ##???" | | ???????????????????????###????## #???? | | ??????????????????????????????## #???? | | ??????????????????????????????# % #???? | | ????????????####?????????????## ###### #??? | | ????????????# ##????????????# #?????# % ##??? | | ???????###### #???????????## ##?????% #???? | | ######## ##^ #?####??????## #????? % #???? | | ## # #### ####??## ##????? ##???? | | # # ##?# ##??????? #????? | | ^ ### #???????? ????? | | # ### ##???????? ????? | +----------------------------------------------------+ Best States ------------- Heat Dissipation 25 Energy Generation 10 Energy Capacity 250 Matter Stores 300 Matter Capacity 300 Sight Range 16 Robot Scan Range 14 Terrain Scan Density 10 Armor Coverage 150 Core Shielding 20 Evasion (%) 42 Item Schematics ----------------- None Robot Schematics ------------------ None Fabricated ------------ Nothing Alien Tech Used ----------------- None Achievements -------------- None Challenges ------------ None Game ------ Seed ScanShadingDrive Manual? 0 Play Time 00:22:08 Cumulative 53.3 hours Start 2024.04.14 @ 14:00:40 End 2024.04.14 @ 14:20:29 Sessions 1 Manual Loads 0 Difficulty Rogue Special Mode None Game No. 59 Rogue 59 Adventurer 0 Explorer 0 Win Type - Total 0 Types 0/0/0/0/0/0/0/0/0 Lore% 17 Gallery% 37 Achievement% 28 Wizard Run 0 Options --------- Layout 1 ASCII 0 Keyboard 1 Movement Vi Keybinds 0 Fullscreen 1 Font 24/Smallcaps Map View 50x35 Zoom Use 0% Tactical HUD 1 Map Filters NONE Filters NONE Steam 1 RUN: 9f96c4b0-382e-4958-8e4c-f4be9dba1d58